[Event "Germany Countries-chT Youth 2022"]
[Site "Wiesbaden"]
[Date "2022.10.02"]
[Round "4"]
[White "Waffenschmidt, Lars"]
[Black "Jeschke, Jan"]
[Result "1-0"]
[ECO "B90"]
[WhiteElo "2302"]
[BlackElo "2146"]
[Annotator "TA"]
[PlyCount "89"]
[EventDate "2022.09.28"]
[EventType "team-tourn"]
[EventRounds "7"]
[EventCountry "GER"]
[SourceTitle "playchess.com"]
[Source "ChessBase"]
[SourceQuality "1"]
[TimeControl "40/5400+30:1800+30"]

{[%evp 12,89,22,10,21,25,22,32,32,30,49,48,65,70,72,69,140,139,121,141,301,289,316,78,70,-26,-26,-31,87,75,63,72,74,71,89,52,87,68,68,69,72,0,0,0,63,0,0,-8,246,247,224,210,222,218,344,342,370,361,393,381,426,418,704,705,688,686,1068,1015,1334,1334,1308,1256,983,964,1750,5061,2779,2279,1273,1237]} 1. e4 {[%emt 0:00:30]} c5 {[%emt 0:00:23]} 2. Nf3 {[%emt 0:00:00]} d6 {[%emt 0:00:22]} 3. d4 {[%emt 0:00:00]} cxd4 {[%emt 0:00:04]} 4. Nxd4 {[%emt 0:00:00]} Nf6 {[%emt 0:00:10]} 5. Nc3 {[%emt 0:00:08]} a6 {[%emt 0:00:16]} 6. h3 {[%emt 0:00:15][%cal Bh2h3,Bh3h4,Bh4h5][%mdl 32]} e6 {[%emt 0:02:34]} 7. g4 {[%emt 0:00:22]} Nfd7 {[%emt 0:00:06] B81: Sicilian Scheveningen: Keres Attack.} 8. g5 {[%emt 0:02:20]} b5 {[%emt 0:02:33]} 9. a3 {[%emt 0:01:23]} Bb7 {[%emt 0:00:23] White is slightly better.} 10. h4 {[%emt 0:02:44]} Nb6 {[%emt 0:06:17]} 11. h5 {[%emt 0:03:11]} N8d7 {[%emt 0:07:22]} 12. Rh3 {[%emt 0:04:23][%cal Og5g6] [#]} Qe7 $146 {[%emt 0:06:14]} ({Predecessor:} 12... Nc5 13. g6 hxg6 14. hxg6 Rxh3 15. gxf7+ Kxf7 16. Bxh3 e5 17. Qh5+ g6 18. Qh7+ Bg7 {1-0 (70) Volokitin,A (2628)-Kuzubov,Y (2640) Lvov 2015}) 13. g6 {[%emt 0:16:28]} O-O-O {[%emt 0:04:58]} (13... hxg6 $14 14. hxg6 Rxh3 15. Bxh3 Nc5) 14. gxf7 {[%emt 0:07:25]} Qxf7 {[%emt 0:33:52]} 15. Be3 {[%emt 0:04:43]} e5 $2 {[%emt 0:06:07]} (15... Nc4 $16) 16. Rf3 $18 {[%emt 0:26:23]} Qe8 {[%emt 0:10:41] [#]} 17. Ndxb5 {[%emt 0:13:13]} axb5 $16 {[%emt 0:00:49]} 18. Bxb6 {[%emt 0:00:48]} (18. Nxb5 $14 d5 19. exd5 Bxd5 20. c4 Bxf3 21. Qxf3) 18... Nxb6 $11 {[%emt 0:00:33]} 19. Nxb5 {[%emt 0:00:21]} Kb8 {[%emt 0:08:11]} (19... Bxe4 20. Rc3+ Kb8 21. Qe2 $11) (19... d5 $15 20. Qd2 Nc4 21. Bxc4 dxc4) 20. Qd2 $1 $16 {[%emt 0:00:31][%mdl 1024] And now Qa5 would win. White has strong compensation.} Nc8 {[%emt 0:04:49]} ({Not} 20... Bxe4 21. Qa5 $1 Rd7 22. Rxf8 (22. Qxb6+ Rb7 $17) 22... Qxf8 23. Qxb6+ Rb7 24. Qxd6+ Qxd6 25. Nxd6 $16) 21. Qa5 {[%emt 0:00:44]} Rd7 {[%emt 0:01:17] Prevents Nc7.} 22. Bh3 {[%emt 0:02:03]} Qd8 {[%emt 0:01:20]} (22... Bxe4 $2 23. Rc3 Qd8 24. Qb4 $18) 23. Qa4 {[%emt 0:00:12] 0-0-0 is the strong threat. White is much more active.} d5 {[%emt 0:01:57]} 24. Bxd7 {[%emt 0:07:51]} Qxd7 {[%emt 0:00:03]} 25. O-O-O $1 {[%emt 0:01:20] Black must now prevent Rc3.} d4 {[%emt 0:00:09] Prevents Rc3.} 26. Rb3 {[%emt 0:00:48]} (26. Qb3 $16) 26... Bc5 $11 {[%emt 0:00:42]} 27. Qc4 {[%emt 0:01:01]} Bb6 {[%emt 0:00:13]} (27... Qe7 $11) 28. f4 {[%emt 0:00:36]} ({Better is} 28. f3 $14) 28... exf4 {[%emt 0:01:17]} 29. Nxd4 {[%emt 0:00:33]} Rd8 $2 {[%emt 0:00:15][%mdl 8192] [#] White stays focused until the end.} (29... Re8 $11 {and Black has nothing to worry.}) 30. Rxb6 $1 $18 {[%emt 0:02:00][%mdl 512] Chess con chili.} Nxb6 {[%emt 0:00:28] [#]} 31. Nc6+ $1 {[%emt 0:00:01][%mdl 512]} Bxc6 {[%emt 0:00:42][%csl Gd8][%cal Rd7d1]} 32. Rxd7 {[%emt 0:00:08]} Bxd7 {[%emt 0:00:48]} (32... Nxc4 {keeps fighting.} 33. Rxd8+ Kc7) 33. Qd4 {[%emt 0:01:53][%csl LRb6,LRg7]} Kb7 {[%emt 0:00:28]} 34. Qxg7 {[%emt 0:00:20]} f3 {[%emt 0:00:35]} 35. Qf6 {[%emt 0:00:21]} Re8 {[%emt 0:00:30]} 36. Qxf3 {[%emt 0:00:21]} Bc6 {[%emt 0:00:27]} (36... Be6 $142 37. Qc3 Rc8) 37. Qf7+ {[%emt 0:00:06] White is clearly winning.} Ka6 {[%emt 0:00:18]} 38. b3 {[%emt 0:00:48]} Rxe4 {[%emt 0:00:42]} 39. Qxh7 {[%emt 0:00:14]} Rh4 {[%emt 0:00:30]} 40. h6 {[%emt 0:02:41]} Be4 {[%emt 0:00:29]} 41. Qe7 {[%emt 0:30:51]} Rh1+ {[%emt 0:02:30]} 42. Kb2 {[%emt 0:00:00]} Bxc2 {[%emt 0:14:26]} 43. Qe2+ {[%emt 0:00:00]} Ka7 {[%emt 0:00:12]} 44. Qg2 {[%emt 0:00:00]} Be4 {[%emt 0:01:07] [#]} 45. Qxh1 $3 {[%mdl 512] Weighted Error Value: White=0.16 (very precise) /Black=0.41} 1-0

[Event "Germany Countries-chT Youth 2022"]
[Site "Wiesbaden"]
[Date "2022.10.02"]
[Round "4"]
[White "Pubantz, Jan"]
[Black "Nied, Pascal"]
[Result "1/2-1/2"]
[ECO "D35"]
[WhiteElo "2273"]
[BlackElo "2131"]
[Annotator "TA"]
[PlyCount "78"]
[EventDate "2022.09.28"]
[EventType "team-tourn"]
[EventRounds "7"]
[EventCountry "GER"]
[SourceTitle "playchess.com"]
[Source "ChessBase"]
[SourceQuality "1"]
[TimeControl "40/5400+30:1800+30"]

{[%evp 13,78,18,15,11,29,22,26,11,15,11,21,6,32,28,95,89,89,72,106,63,77,58,87,18,51,47,51,73,66,25,25,0,0,0,28,-19,-4,-13,-18,-11,-4,-43,0,0,0,0,0,0,0,0,0,0,0,0,0,0,0,0,0,0,0,0,0,0,0,0,0]} 1. d4 {[%emt 0:00:30]} d5 {[%emt 0:00:23]} 2. c4 {[%emt 0:00:00]} e6 {[%emt 0:00:06]} 3. Nc3 {[%emt 0:00:00]} Nf6 {[%emt 0:00:05]} 4. cxd5 {[%emt 0:00:00]} exd5 {[%emt 0:00:04]} 5. Bg5 {[%emt 0:00:10]} c6 {[%emt 0:00:06]} 6. e3 {[%emt 0:00:19]} Bd6 {[%emt 0:00:09] 6...Bd6 is the modern continuation.} 7. Bd3 {[%emt 0:01:00]} O-O {[%emt 0:00:09]} 8. Nge2 {[%emt 0:02:52] D35: Queen's Gambit Declined: Exchange Variation.} h6 {[%emt 0:00:45]} 9. Bf4 {[%emt 0:04:07]} Re8 {[%emt 0:15:11]} 10. Bxd6 {[%emt 0:05:07] White has an edge.} Qxd6 {[%emt 0:00:08] [#]} 11. Ng3 $146 {[%emt 0:00:15]} ({Predecessor:} 11. O-O Nbd7 12. Ng3 Nf8 13. Qc2 g6 14. Rae1 h5 15. f3 h4 16. Nh1 Bd7 17. Qf2 {0-1 (45) Rasulov,V (2448)-Salinas Herrera,P (2517) Chess.com INT 2022}) 11... b6 {[%emt 0:21:10]} 12. O-O {[%emt 0:03:15]} a5 {[%emt 0:10:24]} 13. Re1 {[%emt 0:12:31]} Ba6 {[%emt 0:05:32]} (13... Na6 $11) 14. e4 $16 {[%emt 0:01:18]} (14. Nf5 $6 Qe6 $11) 14... dxe4 {[%emt 0:08:57]} 15. Ncxe4 {[%emt 0:07:03]} ({Much worse is} 15. Ngxe4 Nxe4 16. Nxe4 (16. Rxe4 Rxe4 17. Bxe4 Nd7 $11) 16... Qd8 $11) 15... Nxe4 {[%emt 0:01:25]} 16. Rxe4 {[%emt 0:04:27]} Rxe4 {[%emt 0:02:49]} 17. Bxe4 {[%emt 0:00:27]} Ra7 {[%emt 0:02:40][%cal Ba8a7,Ba7d7,Bd7d8,Bd8e8][%mdl 32]} 18. Qf3 {[%emt 0:05:55]} (18. Qb3 $16) 18... Rd7 {[%emt 0:10:48]} 19. Nf5 {[%emt 0:02:50]} Qf6 {[%emt 0:03:44]} 20. Qg3 {[%emt 0:08:26]} Rd8 {[%emt 0:00:16]} 21. Qc7 {[%emt 0:05:12] [#] Threatens to win with Ne7+. White has more active pieces.} Re8 {[%emt 0:00:34] Inhibits Ne7+.} 22. Nd6 {[%emt 0:02:48]} (22. Bc2 $5 {[%cal Rc7b6]}) 22... Rd8 {[%emt 0:02:11]} 23. Nf5 {[%emt 0:02:43] Hoping for Ne7+.} Re8 {[%emt 0:00:02] Prevents Ne7+.} 24. f3 {[%emt 0:10:31]} (24. Bc2 $142) 24... g6 $11 {[%emt 0:02:09]} 25. Nxh6+ {[%emt 0:02:08][%cal Bf5h6,Bh6g4,Bg4e5,Be5f7,Bf7d6,Bd6e4][%mdl 32]} Kg7 {[%emt 0:00:19]} 26. Ng4 {[%emt 0:01:27]} Qxd4+ {[%emt 0:00:36]} 27. Kh1 {[%emt 0:01:12]} Qxb2 {[%emt 0:02:56]} (27... Bc4 $5 {[%cal Rc4a2]}) 28. Rg1 {[%emt 0:00:32] The position is equal.} Qd4 {[%emt 0:05:04] aiming for ...Bc4.} 29. h3 {[%emt 0:00:55]} Bb5 {[%emt 0:01:36]} 30. Qf4 {[%emt 0:07:47]} Rh8 {[%emt 0:01:42] Inhibits Qh6+.} 31. Ne5 {[%emt 0:00:52]} Rf8 {[%emt 0:01:43]} ({Don't do} 31... Bc4 32. Nxc4 Qxc4 33. Qe5+ Kh7 34. Rd1 $14) 32. Nxf7 $40 {[%mdl 128] [#] And now Qh6+ would win. White is up to no good.} Nd7 {[%emt 0:01:46]} 33. Qd6 $1 {[%emt 0:04:46] Really sharp!} ({Of course not} 33. Qg4 Rxf7 34. Qxg6+ Kf8 35. Qh6+ Qg7 36. Qd6+ Re7 37. Bxc6 Bxc6 38. Qxc6 Qg3 39. Qh6+ Kg8 $17) 33... Qxd6 {[%emt 0:00:02]} 34. Nxd6 {[%emt 0:00:00]} Nf6 {[%emt 0:00:07]} 35. Rb1 {[%emt 0:03:47]} Nxe4 {[%emt 0:01:01]} 36. Nxe4 {[%emt 0:00:02]} Rb8 {[%emt 0:00:49]} 37. Rd1 {[%emt 0:00:57]} Rf8 {[%emt 0:00:54]} 38. Rb1 {[%emt 0:01:09]} Rb8 {[%emt 0:00:05]} 39. Rd1 {[%emt 0:00:05]} Rf8 {Weighted Error Value: White=0.13 (very precise) /Black=0.08 (flawless)} 1/2-1/2

[Event "Germany Countries-chT Youth 2022"]
[Site "Wiesbaden"]
[Date "2022.10.02"]
[Round "4"]
[White "Hagner, Bennet"]
[Black "Mader, Fabian"]
[Result "1-0"]
[ECO "B33"]
[WhiteElo "2253"]
[BlackElo "1735"]
[Annotator "TA"]
[PlyCount "69"]
[EventDate "2022.09.28"]
[EventType "team-tourn"]
[EventRounds "7"]
[EventCountry "GER"]
[SourceTitle "playchess.com"]
[Source "ChessBase"]
[SourceQuality "1"]
[TimeControl "40/5400+30:1800+30"]

{[%evp 24,69,29,16,33,13,11,8,14,20,40,17,14,16,40,26,25,26,45,56,55,50,47,49,41,32,33,47,44,36,179,183,472,472,515,0,515,515,515,515,449,448,515,515,515,515,506,496]} 1. e4 {[%emt 0:00:02]} c5 {[%emt 0:00:09]} 2. Nf3 {[%emt 0:00:08]} Nc6 {[%emt 0:00:09]} 3. d4 {[%emt 0:00:05]} cxd4 {[%emt 0:00:07]} 4. Nxd4 {[%emt 0:00:04]} Nf6 {[%emt 0:00:08]} 5. Nc3 {[%emt 0:00:04]} e5 {[%emt 0:00:08]} 6. Ndb5 {[%emt 0:00:07]} d6 {[%emt 0:00:05]} 7. Bg5 {[%emt 0:00:06]} a6 {[%emt 0:00:07]} 8. Na3 {[%emt 0:00:05]} b5 {[%emt 0:00:04]} 9. Nd5 {[%emt 0:00:06]} Be7 {[%emt 0:00:04]} 10. Bxf6 {[%emt 0:00:06]} Bxf6 {[%emt 0:00:04]} 11. c3 {[%emt 0:00:07]} Rb8 {[%emt 0:00:19]} 12. Nc2 {[%emt 0:00:39]} Bg5 {[%emt 0:00:21]} 13. a4 {[%emt 0:00:27]} bxa4 {[%emt 0:00:23] B33: Sicilian: Pelikan and Sveshnikov Variations.} 14. Ncb4 {[%emt 0:00:16]} Nxb4 {[%emt 0:00:42]} 15. cxb4 {[%emt 0:00:07]} O-O {[%emt 0:00:36] The position is equal.} 16. Rxa4 {[%emt 0:02:31]} a5 {[%emt 0:01:05]} 17. h4 {[%emt 0:01:00]} (17. Rxa5 $2 Rxb4 $3 {[%mdl 512]} 18. Ra4 Rxb2 $19) (17. bxa5 Rxb2 18. Qa1 Rc2 $17) 17... Bh6 {[%emt 0:00:29]} 18. b5 {[%emt 0:00:48]} (18. Rxa5 $2 Rxb4 $3 {[%mdl 512]} 19. Ra8 Rxe4+ 20. Be2 Rd4 $17) ({Of course not} 18. bxa5 Rxb2 19. Qa1 Rc2 $17) 18... Bd7 {[%emt 0:01:34]} 19. Nc3 {[%emt 0:00:28]} d5 {[%emt 0:04:20]} 20. exd5 {[%emt 0:01:29]} e4 {[%emt 0:01:34]} 21. Rxe4 {[%emt 0:00:35]} (21. Nxe4 Rc8 22. Nc3 Re8+ 23. Be2 {[#]} Bxb5 $1 {[%mdl 512]} 24. Nxb5 Rc1 $17) 21... f5 {[%emt 0:00:28]} 22. Rd4 {[%emt 0:01:01] d6 is the strong threat.} ({Much weaker is} 22. Re5 Bf4 23. Re6 Bxe6 24. dxe6 Qxd1+ 25. Nxd1 g6 $15) 22... Re8+ {[%emt 0:00:19]} 23. Be2 {[%emt 0:00:06] And now 0-0 would win.} Rxb5 {[%emt 0:01:39] [#]} 24. O-O $146 {[%emt 0:02:06]} ({Predecessor:} 24. Nxb5 Bxb5 25. Rd3 Bxd3 26. Qxd3 Bf4 27. g3 Bd6 28. Kf1 f4 29. g4 Qf6 30. b3 {½-½ (55) Sorcinelli,A (2276)-Enev,Z (2315) LSS email 2020}) 24... Rxb2 {[%emt 0:02:13]} 25. Bc4 {[%emt 0:01:22]} Kh8 {[%emt 0:01:40]} 26. d6 {[%emt 0:09:22][%cal Bd5d6,Bd6d7][%mdl 32]} f4 {[%emt 0:07:16]} (26... Qf6 $14) 27. Na4 $18 {[%emt 0:11:21]} Bxa4 {[%emt 0:05:53]} (27... Rb8 {was necessary.}) 28. Qxa4 {[%emt 0:00:02] aiming for d7.} Rb4 {[%emt 0:07:12] [#]} 29. Qxe8+ {[%emt 0:08:13][%mdl 512]} Qxe8 {[%emt 0:00:12]} 30. d7 {[%emt 0:00:02][%cal Rd7e8] White is clearly winning.} Qd8 {[%emt 0:01:16]} 31. Re1 {[%emt 0:00:05] Re8+ would kill now.} Rb8 {[%emt 0:01:44] [#]} 32. Bb5 $1 {[%emt 0:01:46][%mdl 512]} g6 {[%emt 0:04:26]} (32... Kg8 33. Re8+) 33. Re8+ {[%emt 0:00:33][%mdl 64] Skewer, Double Attack} Kg7 {[%emt 0:01:02]} 34. Rxd8 {[%emt 0:00:30]} Rxd8 {[%emt 0:00:08]} 35. Re4 {[%emt 0:00:04] Weighted Error Value: White=0.03 (flawless) /Black=0.41} 1-0

[Event "Germany Countries-chT Youth 2022"]
[Site "Wiesbaden"]
[Date "2022.10.02"]
[Round "4"]
[White "Holinka, Henning"]
[Black "Grossmann, Piet"]
[Result "0-1"]
[ECO "C12"]
[WhiteElo "2245"]
[BlackElo "1945"]
[Annotator "TA"]
[PlyCount "142"]
[EventDate "2022.09.28"]
[EventType "team-tourn"]
[EventRounds "7"]
[EventCountry "GER"]
[SourceTitle "playchess.com"]
[Source "ChessBase"]
[SourceQuality "1"]
[TimeControl "40/5400+30:1800+30"]

{[%evp 17,141,0,0,-2,1,-2,0,0,0,0,0,0,111,114,124,126,190,178,168,145,147,129,130,135,139,139,139,135,132,129,159,162,162,160,210,202,204,196,193,190,183,137,142,129,153,152,152,152,207,205,222,222,222,215,214,210,160,-476,-454,-476,-476,-476,-476,-476,-476,-471,-470,-568,-560,-553,-554,-558,-558,-553,-538,-522,-485,-735,-721,-685,-676,-926,-919,-893,-860,-29964,-29967,-29961,-29968,-29970,-29971,-29971,-29972,-29968,-29973,-29972,-29972,-29972,-29975,-29976,-29975,-29971,-29946,-29976,-29977,-29977,-29978,-29977,-29976,-29988,-29989,-29990,-29991,-29992,-29993,-29993,-29994,-29994,-29993,-29996,-29997,-29997,-29998,-29998,-29999,-29999]} 1. e4 {[%emt 0:00:03][%cal Be2e4,Be4e5,Be5f6,Bf6g7][%mdl 32]} e6 {[%emt 0:00:05]} 2. d4 {[%emt 0:00:04]} d5 {[%emt 0:00:04]} 3. Nc3 {[%emt 0:00:05]} Nf6 {[%emt 0:00:09]} 4. Bg5 {[%emt 0:00:07]} Bb4 {[%emt 0:00:12]} 5. e5 {[%emt 0:01:21]} h6 {[%emt 0:00:04]} 6. exf6 {[%emt 0:00:29]} hxg5 {[%emt 0:00:06]} 7. fxg7 {[%emt 0:00:09]} Rg8 {[%emt 0:00:04]} 8. h4 {[%emt 0:00:21]} gxh4 {[%emt 0:10:39]} 9. Qh5 {[%emt 0:00:12]} Qf6 {[%emt 0:01:07]} 10. Qxh4 {[%emt 0:00:54] The main line 10.Qxh4 scores better than 10.Rxh4. C12: French: Classical System: McCutcheon Variation.} Qxh4 {[%emt 0:05:31]} 11. Rxh4 {[%emt 0:00:06]} Rxg7 {[%emt 0:00:06]} 12. Rh8+ {[%emt 0:00:51] The position is equal.} Kd7 {[%emt 0:13:08]} 13. O-O-O {[%emt 0:02:42]} Nc6 {[%emt 0:10:32]} 14. g3 {[%emt 0:00:39][%cal Oc3d5] Black must now prevent Nxd5!} b6 {[%emt 0:00:55] [#]} (14... Bxc3 $11 {remains equal.} 15. bxc3 b6) 15. Nxd5 $1 $16 {[%emt 0:01:53][%mdl 512] [#]} exd5 $146 {[%emt 0:00:22]} (15... Bb7 16. Nf6+) ({Predecessor:} 15... Bb7 16. Rxa8 Bxa8 17. Nxb4 Nxb4 18. d5 exd5 19. a3 Nc6 20. Rxd5+ Ke7 21. Bh3 f6 {1-0 (45) Laursen,B (2159)-Larsen,H (2198) Denmark 1998}) 16. Bh3+ {[%emt 0:00:07][%mdl 64] Skewer, Deflection} Ke7 {[%emt 0:02:18]} (16... Kd6 $16) 17. Bxc8 $18 {[%emt 0:09:24] aiming for c3.} Rb8 {[%emt 0:08:06]} 18. Nf3 {[%emt 0:04:16]} Kf6 {[%emt 0:05:45]} 19. Rh6+ {[%emt 0:06:57]} Rg6 {[%emt 0:00:09]} 20. Rxg6+ {[%emt 0:00:06]} Kxg6 {[%emt 0:00:29]} 21. Bd7 {[%emt 0:01:46]} Ne7 {[%emt 0:02:52]} 22. Ne5+ {[%emt 0:00:52]} Kg7 {[%emt 0:00:33]} 23. Rh1 {[%emt 0:05:17]} Rd8 {[%emt 0:08:59]} 24. Bb5 {[%emt 0:02:29]} f6 {[%emt 0:04:16]} 25. Ng4 {[%emt 0:00:57]} Ng6 {[%emt 0:05:41]} (25... Bd6 $16 {was necessary.} 26. a3 c6) 26. Bd3 {[%emt 0:00:51]} Rh8 {[%emt 0:01:20]} 27. Rxh8 {[%emt 0:02:24]} Nxh8 {[%emt 0:00:04][%mdl 4096] Endgame KBN-KBN} 28. c3 {[%emt 0:00:11]} Bf8 {[%emt 0:01:19]} 29. Ba6 {[%emt 0:02:30]} ({White should play} 29. Ne3 $18) 29... Ng6 $16 {[%emt 0:01:12]} 30. b4 {[%emt 0:05:34]} Kf7 {[%emt 0:06:29]} 31. Bb7 {[%emt 0:01:46]} Ne7 {[%emt 0:00:43]} 32. b5 {[%emt 0:00:42]} Ke6 {[%emt 0:01:10]} (32... Kg6 $16 33. Ne3 Bh6) 33. Ne3 {[%emt 0:01:06]} Bh6 {[%emt 0:02:38]} 34. f4 {[%emt 0:00:14]} f5 {[%emt 0:01:37]} 35. Kd2 {[%emt 0:00:53]} Bg7 {[%emt 0:00:14]} 36. Ke2 {[%emt 0:00:32]} Bf6 {[%emt 0:00:37]} 37. Bc8+ $2 {[%emt 0:00:36]} Nxc8 $19 {[%emt 0:00:17]} 38. g4 {[%emt 0:02:59]} fxg4 {[%emt 0:01:44]} 39. f5+ {[%emt 0:00:07]} Kd6 {[%emt 0:00:33] ...g3 is the strong threat.} 40. Nxg4 {[%emt 0:00:07]} Bg5 {[%emt 0:04:01]} 41. Ne5 {[%emt 0:32:46]} Ke7 {[%emt 0:32:04] Prevents Nf7.} 42. Kf3 {[%emt 0:05:23]} Bd2 {[%emt 0:01:41]} 43. c4 {[%emt 0:04:44]} dxc4 {[%emt 0:00:56]} 44. Nxc4 {[%emt 0:00:29]} Bc3 {[%emt 0:00:27]} 45. Ne5 {[%emt 0:01:41]} Nd6 {[%emt 0:00:00]} 46. Nc6+ {[%emt 0:00:00]} Kf6 {[%emt 0:00:00]} 47. Nxa7 {[%emt 0:00:00]} (47. a4 $142) 47... Bxd4 {[%emt 0:00:00]} 48. Nc6 {[%emt 0:00:00]} Bc3 {[%emt 0:00:00]} 49. a4 {[%emt 0:00:00]} Kxf5 {[%emt 0:00:00]} 50. Ke3 {[%emt 0:00:00]} Nc4+ {[%emt 0:00:00]} 51. Kd3 {[%emt 0:00:00]} Ne5+ {[%emt 0:00:00] Black mates.} 52. Kxc3 {[%emt 0:00:00]} Nxc6 {[%emt 0:00:00]} 53. bxc6 {[%emt 0:00:00] KPP-KPP} Ke5 {[%emt 0:00:00]} 54. Kc4 {[%emt 0:06:36]} Kd6 {[%emt 0:00:00]} 55. Kb5 {[%emt 0:01:19]} Kd5 {[%emt 0:00:00]} 56. Kb4 {[%emt 0:01:07]} Kxc6 {[%emt 0:00:00] KPP-KP} 57. Kc4 {[%emt 0:00:39]} Kd6 {[%emt 0:00:00]} 58. Kb4 {[%emt 0:04:53]} c6 {[%emt 0:00:00]} 59. Kc4 {[%emt 0:02:39]} Ke5 {[%emt 0:00:00]} 60. Kc3 {[%emt 0:06:56]} Kd5 {[%emt 0:00:00]} 61. Kd3 {[%emt 0:02:40]} c5 {[%emt 0:00:00]} 62. Kc3 {[%emt 0:01:19] [#]} c4 $1 {[%emt 0:00:00]} 63. Kb4 {[%emt 0:07:46]} Kd4 {[%emt 0:00:00]} 64. Kb5 {[%emt 0:00:14]} c3 {[%emt 0:00:00]} 65. Kxb6 {[%emt 0:00:09] KP-KP} c2 {[%emt 0:00:00]} 66. a5 {[%emt 0:00:06]} c1=Q {[%emt 0:00:00]} 67. Kb7 {[%emt 0:00:31]} Qb2+ {[%emt 0:00:00]} 68. Ka7 {[%emt 0:00:24]} Kc5 {[%emt 0:00:00]} 69. a6 {[%emt 0:00:15]} Kc6 {[%emt 0:00:00]} 70. Ka8 {[%emt 0:00:05]} Kc7 {[%emt 0:00:00][%csl Gc7][%cal Rb2b8]} 71. a7 {[%emt 0:00:03]} Qb7# {Weighted Error Value: White=0.35/Black=0.12 (very precise)} 0-1

[Event "Germany Countries-chT Youth 2022"]
[Site "Wiesbaden"]
[Date "2022.10.02"]
[Round "4"]
[White "Burian, Simon"]
[Black "Bornholdt, Joa Max"]
[Result "1/2-1/2"]
[ECO "B76"]
[WhiteElo "2196"]
[BlackElo "2196"]
[Annotator "TA"]
[PlyCount "45"]
[EventDate "2022.09.28"]
[EventType "team-tourn"]
[EventRounds "7"]
[EventCountry "GER"]
[SourceTitle "playchess.com"]
[Source "ChessBase"]
[SourceQuality "1"]
[TimeControl "40/5400+30:1800+30"]

{[%evp 30,45,10,0,0,0,0,0,0,0,0,0,0,0,0,0,0,-34]} 1. e4 {[%emt 0:00:03]} c5 {[%emt 0:00:06]} 2. Nf3 {[%emt 0:00:10]} d6 {[%emt 0:00:06]} 3. d4 {[%emt 0:00:10]} cxd4 {[%emt 0:00:05]} 4. Nxd4 {[%emt 0:00:05]} Nf6 {[%emt 0:00:06]} 5. Nc3 {[%emt 0:00:18]} g6 {[%emt 0:00:05]} 6. f3 {[%emt 0:00:17]} Bg7 {[%emt 0:00:10]} 7. Be3 {[%emt 0:00:07]} O-O {[%emt 0:00:10]} 8. Qd2 {[%emt 0:00:09]} Nc6 {[%emt 0:00:06]} 9. g4 {[%emt 0:02:16]} Nxd4 {[%emt 0:01:31]} 10. Bxd4 {[%emt 0:00:06]} Be6 {[%emt 0:00:05]} 11. O-O-O {[%emt 0:00:12]} Qa5 {[%emt 0:00:28]} 12. a3 {[%emt 0:00:06]} Rab8 {[%emt 0:01:47]} 13. h4 {[%emt 0:01:08]} b5 {[%emt 0:00:34]} 14. Nd5 {[%emt 0:00:05]} Qxd2+ {[%emt 0:00:05]} 15. Rxd2 {[%emt 0:00:04]} Bxd5 {[%emt 0:00:06]} 16. exd5 {[%emt 0:00:44] The position is equal.} Nd7 {[%emt 0:01:07] B76: Sicilian Dragon: Yugoslav Attack, 9 g4 and 9 0-0-0.} 17. Bxa7 {[%emt 0:19:43]} Ra8 {[%emt 0:01:44]} 18. Bd4 {[%emt 0:00:15]} b4 {[%emt 0:01:29]} 19. Bxg7 {[%emt 0:00:23]} Kxg7 {[%emt 0:00:02]} 20. Rd3 {[%emt 0:01:51]} Ne5 {[%emt 0:01:30] [#]} 21. Rb3 $146 {[%emt 0:00:21]} ({Predecessor:} 21. Re3 bxa3 22. Rxa3 Rxa3 23. bxa3 Nxf3 24. Rh3 Ne5 25. g5 Rc8 26. Rb3 Rc7 27. a4 {½-½ (52) Ostermann,M-Zimmermann,M GER corr 1991}) 21... bxa3 {[%emt 0:00:28]} 22. bxa3 {[%emt 0:00:09]} Ra5 {[%emt 0:02:46]} 23. Be2 {[%emt 0:02:32] A rather calm draw.  Weighted Error Value: White=0.00 (flawless) /Black=0.00 (flawless)} 1/2-1/2